Workbook

Sheet MSU
B1: Jukka Marttala | E1: 31.5.1973
B2: SUPERPESIS | E2: Runkosarja | I2: Kärkilyönnit (KL), pesänvälit | P2: Runkosarja TOP-30 | U2: Ylempi loppusarja | AB2: Ylempi loppusarja TOP-10 | AG2: Play off, voitot, voittoprosentti | AL2: Arvo-ottelut | AO2: Mitalit
B3: Vuosi | C3: Sija | D3: Seura | E3: OTT | F3: KUN | G3: LÖI | H3: TOI | I3: KL | J3: 0 > 1 | K3: 1 > 2 | L3: 2 > 3 | M3: 3 > k | N3: KL-% | P3: LÖI | Q3: TOI | R3: L+T | S3: KL | U3: OTT | V3: KUN | W3: LÖI | X3: TOI | Y3: KL | Z3: KL-% | AB3: LÖI | AC3: TOI | AD3: L+T | AE3: KL | AG3: Puolivälierät | AH3: Välierät | AI3: Pronssi | AJ3: Finaalit | AL3: IL | AM3: LL | AN3: hSM | AO3: K | AP3: H | AQ3: P
B4: 1992 | C4: 10. | D4: SMJ | E4: 11 | F4: 0 | G4: 2 | H4: 3 | I4: 30 | J4: 12 | K4: 9 | L4: 7 | M4: 2 | N4: 39.0 %
B5: 1993 | C5: 8. | D5: SMJ | E5: 24 | F5: 0 | G5: 2 | H5: 13 | I5: 66 | J5: 38 | K5: 16 | L5: 10 | M5: 2 | N5: 39.8 % | U5: 3 | V5: 0 | W5: 0 | X5: 1 | Y5: 16 | Z5: 57.1 % | AG5: 0-3 SoJy
B6: 1994 | C6: 9. | D6: SMJ | E6: 31 | F6: 0 | G6: 9 | H6: 18 | I6: 106 | J6: 58 | K6: 27 | L6: 12 | M6: 9 | N6: 53.0 %
B7: 1995 | C7: 3. | D7: SMJ | E7: 22 | F7: 0 | G7: 1 | H7: 7 | I7: 57 | J7: 31 | K7: 19 | L7: 6 | M7: 1 | N7: 50.4 % | U7: 7 | V7: 0 | W7: 3 | X7: 3 | Y7: 24 | Z7: 53.3 % | AG7: 3-0 AA | AH7: 1-3 SoJy | AI7: 2-0 Tahko | AQ7: 1
B8: 1996 | C8: 3. | D8: SMJ | E8: 23 | F8: 2 | G8: 3 | H8: 20 | I8: 118 | J8: 66 | K8: 37 | L8: 10 | M8: 5 | N8: 63.8 % | U8: 5 | V8: 0 | W8: 0 | X8: 3 | Y8: 13 | Z8: 44.8 % | AG8: 3-1 Lippo | AH8: 0-3 SoJy | AI8: 2-0 Kiri | AQ8: 1
B9: 1997 | C9: 3. | D9: SMJ | E9: 28 | F9: 0 | G9: 5 | H9: 35 | I9: 165 | J9: 33 | K9: 113 | L9: 14 | M9: 5 | N9: 76.4 % | Q9: 10. | S9: 5. | U9: 13 | V9: 0 | W9: 0 | X9: 15 | Y9: 56 | Z9: 54.9 % | AC9: 2. | AD9: 8. | AE9: 7. | AG9: 3-2 Lippo | AH9: 2-3 SoJy | AI9: 2-1 Tahko | AQ9: 1
B10: 1998 | C10: 6. | D10: SMJ | E10: 28 | F10: 2 | G10: 10 | H10: 27 | I10: 120 | J10: 26 | K10: 66 | L10: 16 | M10: 12 | N10: 66.7 % | Q10: 26. | U10: 3 | V10: 0 | W10: 0 | X10: 0 | Y10: 10 | Z10: 52.6 % | AG10: 0-3 KiPa
B11: 1999 | C11: 3. | D11: Kiri | E11: 28 | F11: 1 | G11: 9 | H11: 29 | I11: 129 | J11: 31 | K11: 53 | L11: 35 | M11: 10 | N11: 64.2 % | Q11: 21. | S11: 25. | U11: 12 | V11: 0 | W11: 6 | X11: 9 | Y11: 50 | Z11: 59.5 % | AG11: 3-2 KoU | AH11: 1-3 Tahko | AI11: 2-1 PattU | AQ11: 1
B12: 2000 | C12: 9. | D12: Kiri | E12: 28 | F12: 0 | G12: 6 | H12: 22 | I12: 126 | J12: 28 | K12: 72 | L12: 20 | M12: 6 | N12: 59.2 %
B13: 2001 | C13: 6. | D13: KoU | E13: 28 | F13: 1 | G13: 7 | H13: 24 | I13: 141 | J13: 12 | K13: 71 | L13: 50 | M13: 8 | N13: 62.9 % | S13: 24. | U13: 4 | V13: 0 | W13: 0 | X13: 1 | Y13: 15 | Z13: 71.4 % | AG13: 1-3 KiPa
B14: 2002 | C14: 1. | D14: NJ | F14: ykköspesis
B15: 2002 | C15: 6. | D15: KoU | E15: 19 | F15: 0 | G15: 5 | H15: 7 | I15: 43 | J15: 10 | K15: 15 | L15: 13 | M15: 5 | N15: 51.8 % | AN15: 1
B16: 2003 | C16: 11. | D16: UPV | E16: 26 | F16: 1 | G16: 5 | H16: 14 | I16: 90 | J16: 35 | K16: 33 | L16: 16 | M16: 6 | N16: 53.9 %
B17: 2004 | C17: 11. | D17: UPV | F17: ykköspesis
B18: 2005 | C18: 6. | D18: UPV | F18: ykköspesis
B19: 2006 | C19: 3. | D19: UPV | F19: ykköspesis
B20: 2007 | C20: 6. | D20: UPV 2 | F20: suomensarja
B21: 2007 | C21: 3. | D21: UPV | F21: ykköspesis
B22: 2008 | C22: 6. | D22: UPV 2 | F22: suomensarja
B23: 2008 | C23: 1. | D23: UPV | F23: ykköspesis
B24: 2009
B25: 2010 | C25: 5. | D25: UPV 2 | F25: suomensarja
B26: 2010 | C26: 12. | D26: UPV | E26: 1 | F26: 0 | G26: 0 | H26: 0 | I26: 1 | J26: 0 | K26: 1 | L26: 0 | M26: 0 | N26: 20.0 %
B27: 2011 | C27: 6. | D27: KoU 2 | F27: suomensarja
B28: 2011 | C28: 5. | D28: KoU | E28: 1 | F28: 0 | G28: 0 | H28: 0 | I28: 1 | J28: 0 | K28: 0 | L28: 1 | M28: 0 | N28: 20.0 %
B29: Yhteensä | E29: 298 | F29: 7 | G29: 64 | H29: 219 | I29: 1193 | J29: 380 | K29: 532 | L29: 210 | M29: 71 | N29: 58.6 % | P29: 0-0-0 | Q29: 0-0-0 | R29: 0-0-0 | S29: 0-0-0 | U29: 47 | V29: 0 | W29: 9 | X29: 32 | Y29: 184 | Z29: 56.1 % | AB29: 0-0-0 | AC29: 0-1-0 | AD29: 0-0-0 | AE29: 0-0-0 | AG29: 4/7 | AH29: 0/4 | AI29: 4/4 | AJ29: 0/0 | AL29: 0 | AM29: 0 | AN29: 1 | AO29: 0 | AP29: 0 | AQ29: 4
AG30: 57.1 % | AH30: 0.0 % | AI30: 100.0 % | AJ30: 0.0 %
B31: Pesispörssi | D31: 833.3
B33: URA SUPERISSA | E33: OTT | F33: KUN | G33: LÖI | H33: TOI | I33: KL | K33: ka/L | L33: ka/T | M33: ka/KL | N33: KL-% | P33: ENSIMMÄISET RUNKOSARJASSA | AG33: ENSIMMÄISET PUDOTUSPELEISSÄ | AL33: YLEISÖ
B34: Runkosarja | E34: 298 | F34: 7 | G34: 64 | H34: 219 | I34: 1193 | K34: 0.24 | L34: 0.73 | M34: 4.00 | N34: 58.6 % | P34: Ottelu | R34: 05.07. 1992 SMJ - KiPa 6-5 | AA34: 1. ottelu | AD34: 19 v 1 kk 5 pv | AG34: Ottelu | AH34: 1. 18.08. 1993 SMJ - SoJy 3-13 | AL34: 2576 | AN34: 20 v 2 kk 18 pv
B35: Ylempi loppusarja | E35: 47 | F35: 0 | G35: 9 | H35: 32 | I35: 184 | K35: 0.19 | L35: 0.68 | M35: 3.91 | N35: 56.1 % | P35: Lyöty | R35: 09.07. 1992 SMJ - VM 11-1 | AA35: 2. ottelu | AD35: 19 v 1 kk 9 pv | AG35: Lyöty | AH35: 10. 16.09. 1995 Tahko - SMJ 0-2 | AL35: 1509 | AN35: 22 v 3 kk 16 pv
B36: Alempi loppusarja | E36: 22 | F36: 0 | G36: 4 | H36: 11 | I36: 74 | K36: 0.18 | L36: 0.50 | M36: 3.36 | N36: 53.6 % | P36: Tuotu | R36: 09.07. 1992 SMJ - VM 11-1 | AA36: 2. ottelu | AD36: 19 v 1 kk 9 pv | AG36: Tuotu | AH36: 2. 22.08. 1993 SoJy - SMJ 12-4 | AL36: 2244 | AN36: 20 v 2 kk 22 pv
B37: KAIKKI | E37: 367 | F37: 7 | G37: 77 | H37: 262 | I37: 1451 | K37: 0.23 | L37: 0.71 | M37: 3.95 | N37: 58.0 % | P37: Kunnari | R37: 13.06. 1996 SMJ - AA 2-1 (4-2, 1-2, 1-1, 1-0) | AA37: 120. ottelu | AD37: 23 v 0 kk 13 pv | AG37: Kunnari
O38: =SUM(O35:O37) -> 0
B39: Paras kärkilyöntiprosentti 1997
B41: Seurat | D41: SMJ = Seinäjoen Maila-Jussit (1932), kasvattajaseura | N41: Kiri = Jyväskylän Kiri (1930) | U41: KoU = Koskenkorvan Urheilijat (1945) | AC41: UPV = Ulvilan Pesä-Veikot (1957)
B43: RUNKOSARJA, KA / OTT | F43: IKÄ | G43: OTT | H43: LÖI | I43: TOI | J43: TEHO | K43: KL | M43: SIJOITUS | P43: OTT | Q43: LÖI | R43: TOI | S43: TEHO | U43: KL | W43: RUNKOSARJA, TASASATASET, ka. / peli | AI43: KATSOJIA YLI 5000 ( 5 )
B44: 1992 | C44: 10. | D44: SMJ | F44: 19 | G44: 11 | H44: =PRODUCT((F4+G4)/E4) -> 0.18 | I44: =PRODUCT(H4/E4) -> 0.27 | J44: =PRODUCT(F4+G4+H4)/E4 -> 0.45 | K44: =PRODUCT(I4/E4) -> 2.73 | M44: 1945 - 1992 | O44: 20 | P44: 1115. | Q44: 1117. | R44: 1092. | S44: 1124. | U44: 487. | W44: Ottelutilasto | AI44: 6130 | AJ44: 13. 02.09. 1997 SMJ - SoJy 1-2, ve 4/5
B45: 1993 | C45: 8. | D45: SMJ | F45: 20 | G45: 24 | H45: =PRODUCT((F5+G5)/E5) -> 0.08 | I45: =PRODUCT(H5/E5) -> 0.54 | J45: =PRODUCT(F5+G5+H5)/E5 -> 0.63 | K45: =PRODUCT(I5/E5) -> 2.75 | M45: 1945 - 1993 | O45: 20 | P45: 765. | Q45: 1048. | R45: 758. | S45: 875. | U45: 382. | W45: 200 | Y45: 169. 25.05. 2000 Kri - Lippo 0-2 | AG45: 26 v 11 kk 25 pv | AI45: 5831 | AJ45: 17. 09.07. 1997 SMJ - Tiikerit 0-1
B46: 1994 | C46: 9. | D46: SMJ | F46: 21 | G46: 31 | H46: 0.29 | I46: 0.58 | J46: 0.87 | K46: 3.42 | M46: 1945 - 1994 | O46: 21 | P46: 554. | Q46: 802. | R46: 560. | S46: 665. | U46: 286. | AI46: 5614 | AJ46: 27. 27.07. 1997 SMJ - KiPa 1-2
B47: 1995 | C47: 3. | D47: SMJ | F47: 22 | G47: 22 | H47: 0.05 | I47: 0.32 | J47: 0.36 | K47: 2.59 | M47: 1945 - 1995 | P47: 443. | Q47: 798. | R47: 520. | S47: 634. | U47: 262. | W47: Etenijätilasto | AI47: 5319 | AJ47: 39. 01.06. 1997 SMJ - Kiri 2-0
B48: 1996 | C48: 3. | D48: SMJ | F48: 23 | G48: 23 | H48: 0.22 | I48: 0.87 | J48: 1.09 | K48: 5.13 | M48: 1945 - 1996 | P48: 374. | Q48: 735. | R48: 405. | S48: 542. | U48: 212. | W48: 200 | Y48: 101. 02.06. 2002 KoU - KaMa 2-0 | AG48: 259. ottelu | AH48: 0.77 | AI48: 5132 | AJ48: 54. 02.08. 1998 SMJ - Tiikerit 1-2
B49: 1997 | C49: 3. | D49: SMJ | F49: 24 | G49: 28 | H49: 0.18 | I49: 1.25 | J49: 1.43 | K49: 5.89 | M49: 1945 - 1997 | P49: 302. | Q49: 674. | R49: 269. | S49: 403. | U49: 160.
B50: 1998 | C50: 6. | D50: SMJ | F50: 25 | G50: 28 | H50: 0.43 | I50: 0.96 | J50: 1.39 | K50: 4.29 | M50: 1945 - 1998 | P50: 231. | Q50: 575. | R50: 205. | S50: 328. | U50: 133. | W50: Kärkilyöjätilasto | AI50: YLEISÖENNÄTYS KOTONA
B51: 1999 | C51: 3. | D51: Kiri | F51: 26 | G51: 28 | H51: 0.36 | I51: 1.04 | J51: 1.39 | K51: 4.61 | M51: 1945 - 1999 | P51: 178. | Q51: 496. | R51: 151. | S51: 275. | U51: 114. | W51: 1000 | Y51: 84. 12.07. 2001 KoU - PattU 2-0 | AG51: 240. ottelu | AH51: 4.17 | AI51: 6130 | AJ51: 13. 02.09. 1997 SMJ - SoJy 1-2, ve 4/5
B52: 2000 | C52: 9. | D52: Kiri | F52: 27 | G52: 28 | H52: 0.21 | I52: 0.79 | J52: 1.00 | K52: 4.50 | M52: 1945 - 2000 | P52: 131. | Q52: 464. | R52: 124. | S52: 243. | U52: 96.
B53: 2001 | C53: 6. | D53: KoU | F53: 28 | G53: 28 | H53: 0.29 | I53: 0.86 | J53: 1.14 | K53: 5.04 | M53: 1945 - 2001 | P53: 103. | Q53: 435. | R53: 103. | S53: 211. | U53: 75. | AI53: YLEISÖENNÄTYS VIERAISSA
B54: 2002 | C54: 6. | D54: KoU | F54: 29 | G54: 19 | H54: =PRODUCT((F15+G15)/E15) -> 0.26 | I54: =PRODUCT(H15/E15) -> 0.37 | J54: =PRODUCT(F15+G15+H15)/E15 -> 0.63 | K54: =PRODUCT(I15/E15) -> 2.26 | M54: 1945 - 2002 | P54: 86. | Q54: 416. | R54: 97. | S54: 202. | U54: 73. | AI54: 4079 | AJ54: 211. 24.08. 1997 Lippo - SMJ 0-2, pve 4/5
B55: 2003 | C55: 11. | D55: UPV | F55: 30 | G55: 26 | H55: =PRODUCT((F16+G16)/E16) -> 0.23 | I55: =PRODUCT(H16/E16) -> 0.54 | J55: =PRODUCT(F16+G16+H16)/E16 -> 0.77 | K55: =PRODUCT(I16/E16) -> 3.46 | M55: 1945 - 2003 | P55: 67. | Q55: 386. | R55: 85. | S55: 179. | U55: 68.
B56: 2004 | F56: 31 | M56: 1945 - 2004 | P56: 73. | Q56: 392. | R56: 87. | S56: 182. | U56: 72. | AI56: RUNKOSARJA JA YLEMPI LOPPUSARJA
B57: 2005 | F57: 32 | M57: 1945 - 2005 | P57: 79. | Q57: 400. | R57: 88. | S57: 186. | U57: 76. | AI57: KATSOJIA | AJ57: 558 200
B58: 2006 | F58: 33 | M58: 1945 - 2006 | P58: 83. | Q58: 405. | R58: 90. | S58: 187. | U58: 80. | AI58: OTTELUT | AJ58: 345
B59: 2007 | F59: 34 | M59: 1945 - 2007 | P59: 90. | Q59: 407. | R59: 94. | S59: 196. | U59: 80. | AI59: KA / OTT | AJ59: 1618
B60: 2008 | F60: 35 | M60: 1945 - 2008 | P60: 96. | Q60: 413. | R60: 96. | S60: 198. | U60: 83.
B61: 2009 | F61: 36 | M61: 1945 - 2009 | P61: 100. | Q61: 415. | R61: 99. | S61: 202. | U61: 87.
B62: 2010 | C62: 12. | D62: UPV | F62: 37 | G62: 1 | H62: 0.00 | I62: 0.00 | J62: 0.00 | K62: 1.00 | M62: 1945 - 2010 | P62: 105. | Q62: 422. | R62: 101. | S62: 206. | U62: 91.
B63: 2011 | C63: 5. | D63: KoU | F63: 38 | G63: 1 | H63: 0.00 | I63: 0.00 | J63: 0.00 | K63: 1.00 | M63: 1945 - 2011 | P63: 109. | Q63: 430. | R63: 104. | S63: 209. | U63: 97.
B66: PLAY OFF, KA / OTT | F66: IKÄ | G66: OTT | H66: LÖI | I66: TOI | J66: TEHO | K66: KL | M66: SIJOITUS | P66: OTT | Q66: LÖI | R66: TOI | S66: TEHO | U66: KL | W66: PLAY OFF, TASASATASET, ka. / peli
B67: 1993 | C67: 8. | D67: SMJ | F67: 20 | G67: 3 | H67: =PRODUCT((V5+W5)/U5) -> 0.00 | I67: =PRODUCT(X5/U5) -> 0.33 | J67: =PRODUCT(V5+W5+X5)/U5 -> 0.33 | K67: =PRODUCT(Y5/U5) -> 5.33 | M67: 1979 - 1993 | O67: 20 | P67: 238. | R67: 213. | S67: 240. | U67: 197.
B68: 1994 | C68: 9. | D68: SMJ | F68: 21 | M68: 1979 - 1994 | O68: 20 | P68: 244. | R68: 214. | S68: 244. | U68: 199.
B69: 1995 | C69: 3. | D69: SMJ | F69: 22 | G69: 7 | H69: =PRODUCT((V7+W7)/U7) -> 0.43 | I69: =PRODUCT(X7/U7) -> 0.43 | J69: =PRODUCT(V7+W7+X7)/U7 -> 0.86 | K69: =PRODUCT(Y7/U7) -> 3.43 | M69: 1979 - 1995 | O69: 21 | P69: 170. | Q69: 181. | R69: 160. | S69: 182. | U69: 146.
B70: 1996 | C70: 3. | D70: SMJ | F70: 23 | G70: 5 | H70: =PRODUCT((V8+W8)/U8) -> 0.00 | I70: =PRODUCT(X8/U8) -> 0.60 | J70: =PRODUCT(V8+W8+X8)/U8 -> 0.60 | K70: =PRODUCT(Y8/U8) -> 2.60 | M70: 1979 - 1996 | P70: 147. | Q70: 196. | R70: 130. | S70: 166. | U70: 134.
B71: 1997 | C71: 3. | D71: SMJ | F71: 24 | G71: 13 | H71: 0.00 | I71: 1.15 | J71: 1.15 | K71: 4.31 | M71: 1979 - 1997 | P71: 86. | Q71: 207. | R71: 54. | S71: 104. | U71: 81.
B72: 1998 | C72: 6. | D72: SMJ | F72: 25 | G72: 3 | H72: 0.00 | I72: 0.00 | J72: 0.00 | K72: 3.33 | M72: 1979 - 1998 | P72: 76. | Q72: 214. | R72: 58. | S72: 105. | U72: 79.
B73: 1999 | C73: 3. | D73: Kiri | F73: 26 | G73: 12 | H73: 0.50 | I73: 0.75 | J73: 1.25 | K73: 4.17 | M73: 1979 - 1999 | P73: 48. | Q73: 140. | R73: 44. | S73: 74. | U73: 52.
B74: 2000 | C74: 9. | D74: Kiri | F74: 27 | M74: 1979 - 2000 | P74: 53. | Q74: 141. | R74: 48. | S74: 78. | U74: 60.
B75: 2001 | C75: 6. | D75: KoU | F75: 28 | G75: 4 | H75: 0.00 | I75: 0.25 | J75: 0.25 | K75: 3.75 | M75: 1979 - 2001 | P75: 50. | Q75: 152. | R75: 51. | S75: 86. | U75: 58.
B76: 2002 | C76: 6. | D76: KoU | F76: 29 | M76: 1979 - 2002 | P76: 55. | Q76: 162. | R76: 53. | S76: 93. | U76: 60.
B77: 2003 | C77: 11. | D77: UPV | F77: 30 | M77: 1979 - 2003 | P77: 64. | Q77: 172. | R77: 55. | S77: 101. | U77: 63.
B78: 2004 | F78: 31 | M78: 1979 - 2004 | P78: 79. | Q78: 182. | R78: 64. | S78: 111. | U78: 75.
B79: 2005 | F79: 32 | M79: 1979 - 2005 | P79: 89. | Q79: 189. | R79: 67. | S79: 114. | U79: 82.
B80: 2006 | F80: 33 | M80: 1979 - 2006 | P80: 100. | Q80: 199. | R80: 74. | S80: 121. | U80: 85.
B81: 2007 | F81: 34 | M81: 1979 - 2007 | P81: 107. | Q81: 204. | R81: 79. | S81: 130. | U81: 94.
B82: 2008 | F82: 35 | M82: 1979 - 2008 | P82: 115. | Q82: 209. | R82: 81. | S82: 135. | U82: 100.
B83: 2009 | F83: 36 | M83: 1979 - 2009 | P83: 120. | Q83: 213. | R83: 86. | S83: 140. | U83: 103.
B84: 2010 | C84: 12. | D84: UPV | F84: 37 | M84: 1979 - 2010 | P84: 127. | Q84: 217. | R84: 89. | S84: 146. | U84: 105.
B85: 2011 | C85: 5. | D85: KoU | F85: 38 | M85: 1979 - 2011 | P85: 135. | Q85: 227. | R85: 90. | S85: 147. | U85: 109.

Sheet MYP, MSS
B1: Jukka Marttala | E1: 31.5.1973
B2: YKKÖSPESIS | E2: Runkosarja | L2: Runkosarja TOP-10 | Q2: Jatkosarjat | X2: SUOMENSARJA | AA2: Runkosarja | AH2: Runkosarja TOP-10 | AM2: Jatkosarjat
B3: Vuosi | C3: Sija | D3: Seura | E3: OTT | F3: KUN | G3: LÖI | H3: TOI | I3: KL | J3: KL-% | L3: LÖI | M3: TOI | N3: L+T | O3: KL | Q3: OTT | R3: KUN | S3: LÖI | T3: TOI | U3: KL | V3: KL-% | X3: Vuosi | Y3: Sija | Z3: Seura | AA3: OTT | AB3: KUN | AC3: LÖI | AD3: TOI | AE3: KL | AF3: KL-% | AH3: LÖI | AI3: TOI | AJ3: L+T | AK3: KL | AM3: OTT | AN3: KUN | AO3: LÖI | AP3: TOI | AQ3: KL | AR3: KL-%
B4: 2002 | C4: 1. | D4: NJ | E4: 5 | F4: 0 | G4: 2 | H4: 11 | I4: 31 | J4: 70.5 % | K4: 44
B6: 2004 | C6: 11. | D6: UPV | E6: 22 | F6: 1 | G6: 10 | H6: 17 | I6: 97 | J6: 59.5 % | K6: 163 | Q6: 2 | R6: 0 | S6: 1 | T6: 1 | U6: 8 | V6: 40.0 % | W6: 20
B7: 2005 | C7: 6. | D7: UPV | E7: 22 | F7: 0 | G7: 13 | H7: 26 | I7: 79 | J7: 51.6 % | K7: 153 | Q7: 2 | R7: 0 | S7: 1 | T7: 0 | U7: 9 | V7: 52.9 % | W7: 17
B8: 2006 | C8: 3. | D8: UPV | E8: 21 | F8: 0 | G8: 5 | H8: 15 | I8: 62 | J8: 49.2 % | K8: 126 | Q8: 1 | R8: 0 | S8: 0 | T8: 2 | U8: 5 | V8: 83.3 % | W8: 6
B9: 2007 | C9: 3. | D9: UPV | E9: 10 | F9: 0 | G9: 5 | H9: 4 | I9: 44 | J9: 61.1 % | K9: 72 | Q9: 2 | R9: 0 | S9: 0 | T9: 1 | U9: 3 | V9: 37.5 % | W9: 8 | X9: 2007 | Y9: 6. | Z9: UPV 2 | AA9: 4 | AB9: 0 | AC9: 2 | AD9: 7 | AE9: 20 | AF9: 60.6 % | AG9: 33
B10: 2008 | C10: 1. | D10: UPV | E10: 1 | F10: 1 | G10: 1 | H10: 2 | I10: 9 | J10: 90.0 % | K10: 10 | X10: 2008 | Y10: 6. | Z10: UPV 2 | AA10: 7 | AB10: 0 | AC10: 0 | AD10: 2 | AE10: 21 | AF10: 46.7 % | AG10: 45
X12: 2010 | Y12: 5. | Z12: UPV 2 | AA12: 2 | AB12: 0 | AC12: 3 | AD12: 0 | AE12: 8 | AF12: 50.0 % | AG12: 16
X13: 2011 | Y13: 6. | Z13: KoU 2 | AA13: 3 | AB13: 0 | AC13: 3 | AD13: 1 | AE13: 14 | AF13: 70.0 % | AG13: 20
B14: YHTEENSÄ | E14: =SUM(E4:E13) -> 81 | F14: =SUM(F4:F13) -> 2 | G14: =SUM(G4:G13) -> 36 | H14: =SUM(H4:H13) -> 75 | I14: =SUM(I4:I13) -> 322 | J14: =PRODUCT(I14/K14) -> 56.7 % | K14: =SUM(K4:K13) -> 568 | Q14: =SUM(Q4:Q13) -> 7 | R14: =SUM(R4:R13) -> 0 | S14: =SUM(S4:S13) -> 2 | T14: =SUM(T4:T13) -> 4 | U14: =SUM(U4:U13) -> 25 | V14: =PRODUCT(U14/W14) -> 49.0 % | W14: =SUM(W4:W13) -> 51 | X14: YHTEENSÄ | AA14: =SUM(AA4:AA13) -> 16 | AB14: =SUM(AB4:AB13) -> 0 | AC14: =SUM(AC4:AC13) -> 8 | AD14: =SUM(AD4:AD13) -> 10 | AE14: =SUM(AE4:AE13) -> 63 | AF14: =PRODUCT(AE14/AG14) -> 55.3 % | AG14: =SUM(AG4:AG13) -> 114 | AM14: =SUM(AM4:AM13) -> 0 | AN14: =SUM(AN4:AN13) -> 0 | AO14: =SUM(AO4:AO13) -> 0 | AP14: =SUM(AP4:AP13) -> 0 | AQ14: =SUM(AQ4:AQ13) -> 0 | AR14: 0.0 % | AS14: =SUM(AS4:AS13) -> 0
B16: KAIKKI OTTELUT | E16: OTT | F16: KUN | G16: LÖI | H16: TOI | I16: KL | J16: KL-% | L16: ka/L | M16: ka/T | N16: ka/l+t | O16: ka/kl | R16: Seurat | T16: SMJ = Seinäjoen Maila-Jussit (1932), kasvattajaseura
B17: SUPERPESIS | E17: 367 | F17: 7 | G17: 77 | H17: 262 | I17: 1451 | J17: 58.0 % | K17: =PRODUCT(I17/J17) -> 2501.724138 | L17: =PRODUCT((F17+G17)/E17) -> 0.23 | M17: =PRODUCT(H17/E17) -> 0.71 | N17: =PRODUCT((F17+G17+H17)/E17) -> 0.94 | O17: =PRODUCT(I17/E17) -> 3.95 | T17: Kiri = Jyväskylän Kiri (1930)
B18: YKKÖSPESIS | E18: =PRODUCT(E14+Q14) -> 88 | F18: =PRODUCT(F14+R14) -> 2 | G18: =PRODUCT(G14+S14) -> 38 | H18: =PRODUCT(H14+T14) -> 79 | I18: =PRODUCT(I14+U14) -> 347 | J18: =PRODUCT(I18/K18) -> 56.1 % | K18: =PRODUCT(K14+W14) -> 619 | L18: =PRODUCT((F18+G18)/E18) -> 0.45 | M18: =PRODUCT(H18/E18) -> 0.90 | N18: =PRODUCT((F18+G18+H18)/E18) -> 1.35 | O18: =PRODUCT(I18/E18) -> 3.94 | T18: KoU = Koskenkorvan Urheilijat (1945)
B19: SUOMENSARJA | E19: =PRODUCT(AA14+AM14) -> 16 | F19: =PRODUCT(AB14+AN14) -> 0 | G19: =PRODUCT(AC14+AO14) -> 8 | H19: =PRODUCT(AD14+AP14) -> 10 | I19: =PRODUCT(AE14+AQ14) -> 63 | J19: =PRODUCT(I19/K19) -> 55.3 % | K19: =PRODUCT(AG14+AS14) -> 114 | L19: =PRODUCT((F19+G19)/E19) -> 0.50 | M19: =PRODUCT(H19/E19) -> 0.63 | N19: =PRODUCT((F19+G19+H19)/E19) -> 1.13 | O19: =PRODUCT(I19/E19) -> 3.94 | T19: UPV = Ulvilan Pesä-Veikot (1957)
B20: YHTEENSÄ | E20: =SUM(E17:E19) -> 471 | F20: =SUM(F17:F19) -> 9 | G20: 123 | H20: 351 | I20: 1861 | J20: =PRODUCT(I20/K20) -> 57.5 % | K20: =SUM(K17:K19) -> 3234.724138 | L20: =PRODUCT((F20+G20)/E20) -> 0.28 | M20: =PRODUCT(H20/E20) -> 0.75 | N20: =PRODUCT((F20+G20+H20)/E20) -> 1.03 | O20: =PRODUCT(I20/E20) -> 3.95

Sheet Arvo-ottelut
B1: ITÄ - LÄNSI - KORTTI
B2: Jukka Marttala | C2: 31.5.1973
B3: A - POJAT | C3: Itä - Länsi, tulos | D3: Joukkue | E3: Seura | G3: V | H3: T | I3: H | J3: Up. | K3: Lj. | L3: Palk. | M3: O | N3: K | O3: L | P3: T | Q3: KL | R3: 1 | S3: 2 | T3: 3 | U3: k | V3: KL-% | W3: Pelinjohtaja | X3: Yleisöä
B4: 20.07. 1991 Oulu | C4: 4-5 | D4: Länsi | E4: SMJ | G4: 1 | K4: jok | M4: 1 | Q4: 3/5 | R4: 3/5 | V4: 60.0 % | W4: Ahti Joensuu | X4: 2124
B5: 28.06. 1992 Seinäjoki | C5: 6-8 | D5: Länsi | E5: SMJ | G5: 1 | J5: 3p | K5: 2 | L5: I p | M5: 1 | P5: 1 | Q5: 5/5 | S5: 5/5 | V5: 100.0 % | W5: Jukka Peltoniemi | X5: 2515
B6: Yhteensä | G6: 2 | M6: =SUM(M3:M5) -> 2 | P6: 1 | Q6: 8/10 | R6: 3/5 | S6: 5/5 | V6: 80.0 %

Sheet Pelinjohtaja
B1: PELINJOHTAJAKORTTI
B2: Jukka Marttala | E2: 31.5.1973
B3: MSU | C3: Runkosarja | J3: Ylempi loppusarja | N3: Alempi loppusarja | R3: Mitalit | V3: PLAY OFF
B4: Vuosi | C4: Seura | D4: Sija | E4: O | F4: V | G4: H | H4: Voitto-% | J4: O | K4: V | L4: H | M4: Voitto-% | N4: O | O4: V | P4: H | Q4: Voitto-% | R4: 1 | S4: 2 | T4: 3 | V4: Puolivälierä | W4: Välierä | X4: Pronssi | Y4: Finaali
B5: 2006 | C5: UPV | D5: 3. | E5: MYP, 1 ottelu
B6: 2007 | C6: UPV | D6: 3. | E6: MYP, 12 ottelua | N6: 5 | O6: 1 | P6: 4 | Q6: =PRODUCT(O6/N6) -> 20.0 %
B7: 2008 | C7: UPV | D7: 1. | E7: MYP, 21 ottelua | N7: 5 | O7: 2 | P7: 3 | Q7: =PRODUCT(O7/N7) -> 40.0 %
B8: 2009 | C8: UPV | D8: 1. | E8: MYP, 22 ottelua | Z8: Vuoden pelinjohtaja (MYP)
B9: 2012 | C9: KoU | D9: 5. | E9: 26 | F9: 16 | G9: 10 | H9: =PRODUCT(F9/E9) -> 61.5 % | J9: 6 | K9: 2 | L9: 4 | M9: =PRODUCT(K9/J9) -> 33.3 % | V9: 2-4 PattU
B10: Yhteensä | E10: =SUM(E6:E9) -> 26 | F10: =SUM(F6:F9) -> 16 | G10: =SUM(G6:G9) -> 10 | H10: =PRODUCT(F10/E10) -> 61.5 % | J10: =SUM(J6:J9) -> 6 | K10: =SUM(K6:K9) -> 2 | L10: =SUM(L6:L9) -> 4 | M10: =PRODUCT(K10/J10) -> 33.3 % | N10: =SUM(N6:N9) -> 10 | O10: =SUM(O6:O9) -> 3 | P10: =SUM(P6:P9) -> 7 | Q10: 0.0 % | R10: =SUM(R6:R9) -> 0 | S10: =SUM(S6:S9) -> 0 | T10: =SUM(T6:T9) -> 0 | V10: 0 - 1
B12: URA SUPERISSA | E12: O | F12: V | G12: H | H12: Voitto-% | J12: PLAY OFF | M12: SARJAT | N12: O | O12: V | P12: H | Q12: Voitto-% | V12: Seurat: | W12: UPV = Ulvilan Pesä-Veikot (1957)
B13: Runkosarja | E13: =PRODUCT(E10) -> 26 | F13: =PRODUCT(F10) -> 16 | G13: =PRODUCT(G10) -> 10 | H13: =PRODUCT(F13/E13) -> 61.5 % | J13: Puolivälierät | M13: 0 - 1 | N13: 6 | O13: 2 | P13: 4 | Q13: 33.3 % | W13: KoU = Koskenkorvan Urheilijat (1945)
B14: Ylempi loppusarja | E14: =SUM(J10) -> 6 | F14: =SUM(K10) -> 2 | G14: =SUM(L10) -> 4 | H14: =PRODUCT(F14/E14) -> 33.3 % | J14: Välierät
B15: Alempi loppusarja | E15: =SUM(N10) -> 10 | F15: =SUM(O10) -> 3 | G15: =SUM(P10) -> 7 | H15: 0.0 % | J15: Finaalit
B16: KAIKKI | E16: =SUM(E13:E15) -> 42 | F16: =SUM(F13:F15) -> 21 | G16: =SUM(G13:G15) -> 21 | H16: =PRODUCT(F16/E16) -> 50.0 % | J16: KAIKKI | N16: 6 | O16: 2 | P16: 4 | Q16: 33.3 %

Sheet Kärkilyönnit
B1: KÄRKILYÖNNIT RUNKOSARJASSA | V1: VUOSITTAISET SIJOITUKSET TOP - 30
G2: 0 > 1 | J2: 1 > 2 | M2: 2 > 3 | P2: 3 > k | S2: Yhteensä
B3: Vuosi | C3: Sija | D3: Seura | E3: OTT | F3: KL | G3: YHT | H3: % | I3: KL | J3: YHT | K3: % | L3: KL | M3: YHT | N3: % | O3: KL | P3: YHT | Q3: % | R3: KL | S3: YHT | T3: % | V3: Vuosi | W3: Sija | X3: Seura | Y3: 0 > 1 | Z3: 1 > 2 | AA3: 2 > 3 | AB3: 3 > k | AC3: KL
B4: 1992 | C4: 10. | D4: SMJ | E4: 11 | F4: 12 | G4: 31 | H4: =PRODUCT(F4/G4) -> 38.7 % | I4: 9 | J4: 24 | K4: =PRODUCT(I4/J4) -> 37.5 % | L4: 7 | M4: 15 | N4: =PRODUCT(L4/M4) -> 46.7 % | O4: 2 | P4: 7 | Q4: =PRODUCT(O4/P4) -> 28.6 % | R4: 30 | S4: =PRODUCT(G4+J4+M4+P4) -> 77 | T4: 39.0 % | V4: 1992 | W4: 10. | X4: SMJ
B5: 1993 | C5: 8. | D5: SMJ | E5: 24 | F5: 38 | G5: 79 | H5: 48.1 % | I5: 16 | J5: 50 | K5: 32.0 % | L5: 10 | M5: 23 | N5: 43.5 % | O5: 2 | P5: 14 | Q5: 14.3 % | R5: 66 | S5: 166 | T5: 39.8 % | V5: 1993 | W5: 8. | X5: SMJ
B6: 1994 | C6: 9. | D6: SMJ | E6: 31 | F6: 58 | G6: 104 | H6: 55.8 % | I6: 27 | J6: 46 | K6: 58.7 % | L6: 12 | M6: 27 | N6: 44.4 % | O6: 9 | P6: 23 | Q6: 39.1 % | R6: 106 | S6: 200 | T6: 53.0 % | V6: 1994 | W6: 9. | X6: SMJ | Y6: 16.
B7: 1995 | C7: 3. | D7: SMJ | E7: 22 | F7: 31 | G7: 62 | H7: 50.0 % | I7: 19 | J7: 31 | K7: 61.3 % | L7: 6 | M7: 13 | N7: 46.2 % | O7: 1 | P7: 7 | Q7: 14.3 % | R7: 57 | S7: 113 | T7: 50.4 % | V7: 1995 | W7: 3. | X7: SMJ
B8: 1996 | C8: 3. | D8: SMJ | E8: 23 | F8: 66 | G8: 107 | H8: 61.7 % | I8: 37 | J8: 50 | K8: 74.0 % | L8: 10 | M8: 14 | N8: 71.4 % | O8: 5 | P8: 14 | Q8: 35.7 % | R8: 118 | S8: 185 | T8: 63.8 % | V8: 1996 | W8: 3. | X8: SMJ | Y8: 12.
B9: 1997 | C9: 4. | D9: SMJ | E9: 28 | F9: 33 | G9: 54 | H9: 61.1 % | I9: 113 | J9: 133 | K9: 85.0 % | L9: 14 | M9: 20 | N9: 70.0 % | O9: 5 | P9: 9 | Q9: 55.6 % | R9: 165 | S9: 216 | T9: 76.4 % | V9: 1997 | W9: 4. | X9: SMJ | Z9: 1. | AC9: 5.
B10: 1998 | C10: 6. | D10: SMJ | E10: 28 | F10: 26 | G10: 40 | H10: 65.0 % | I10: 66 | J10: 97 | K10: 68.0 % | L10: 16 | M10: 19 | N10: 84.2 % | O10: 12 | P10: 24 | Q10: 50.0 % | R10: 120 | S10: 180 | T10: 66.7 % | V10: 1998 | W10: 6. | X10: SMJ | Z10: 7.
B11: 1999 | C11: 4. | D11: Kiri | E11: 28 | F11: 31 | G11: 51 | H11: 60.8 % | I11: 53 | J11: 73 | K11: 72.6 % | L11: 35 | M11: 50 | N11: 70.0 % | O11: 10 | P11: 27 | Q11: 37.0 % | R11: 129 | S11: 201 | T11: 64.2 % | V11: 1999 | W11: 4. | X11: Kiri | Z11: 19. | AC11: 25.
B12: 2000 | C12: 9. | D12: Kiri | E12: 28 | F12: 28 | G12: 44 | H12: 63.6 % | I12: 72 | J12: 115 | K12: 62.6 % | L12: 20 | M12: 38 | N12: 52.6 % | O12: 6 | P12: 16 | Q12: 37.5 % | R12: 126 | S12: 213 | T12: 59.2 % | V12: 2000 | W12: 9. | X12: Kiri | Z12: 9.
B13: 2001 | C13: 6. | D13: KoU | E13: 28 | F13: 12 | G13: 39 | H13: 30.8 % | I13: 71 | J13: 96 | K13: 74.0 % | L13: 50 | M13: 69 | N13: 72.5 % | O13: 8 | P13: 20 | Q13: 40.0 % | R13: 141 | S13: 224 | T13: 62.9 % | V13: 2001 | W13: 6. | X13: KoU | Z13: 10. | AA13: 20. | AC13: 24.
B14: 2002 | C14: 4. | D14: KoU | E14: 19 | F14: 10 | G14: 23 | H14: 43.5 % | I14: 15 | J14: 33 | K14: 45.5 % | L14: 13 | M14: 19 | N14: 68.4 % | O14: 5 | P14: 8 | Q14: 62.5 % | R14: 43 | S14: 83 | T14: 51.8 % | V14: 2002 | W14: 4. | X14: KoU
B15: 2003 | C15: 11. | D15: UPV | E15: 26 | F15: 35 | G15: 58 | H15: 60.3 % | I15: 33 | J15: 69 | K15: 47.8 % | L15: 16 | M15: 27 | N15: 59.3 % | O15: 6 | P15: 13 | Q15: 46.2 % | R15: 90 | S15: 167 | T15: 53.9 % | V15: 2003 | W15: 11. | X15: UPV | Y15: 29.
B16: **** | V16: ****
B17: 2010 | C17: 12. | D17: UPV | E17: 1 | F17: 0 | G17: 1 | H17: 0.0 % | I17: 1 | J17: 2 | K17: 50.0 % | L17: 0 | M17: 2 | N17: 0.0 % | O17: 0 | P17: 0 | Q17: 0.0 % | R17: 1 | S17: 5 | T17: 20.0 % | V17: 2010 | W17: 12. | X17: UPV
B18: 2011 | C18: 5. | D18: KoU | E18: 1 | F18: 0 | G18: 1 | H18: 0.0 % | I18: 0 | J18: 2 | K18: 0.0 % | L18: 1 | M18: 2 | N18: 50.0 % | O18: 0 | P18: 0 | Q18: 0.0 % | R18: 1 | S18: 5 | T18: 20.0 % | V18: 2011 | W18: 5. | X18: KoU
B19: Yhteensä | E19: =SUM(E4:E18) -> 298 | F19: =SUM(F4:F18) -> 380 | G19: =SUM(G4:G18) -> 694 | H19: =PRODUCT(F19/G19) -> 54.8 % | I19: =SUM(I4:I18) -> 532 | J19: =SUM(J4:J18) -> 821 | K19: =PRODUCT(I19/J19) -> 64.8 % | L19: =SUM(L4:L18) -> 210 | M19: =SUM(M4:M18) -> 338 | N19: =PRODUCT(L19/M19) -> 62.1 % | O19: =SUM(O4:O18) -> 71 | P19: =SUM(P4:P18) -> 182 | Q19: =PRODUCT(O19/P19) -> 39.0 % | R19: =SUM(R4:R18) -> 1193 | S19: =SUM(S4:S18) -> 2035 | T19: =PRODUCT(R19/S19) -> 58.6 %
B21: KÄRKILYÖNNIT YLEMMISSÄ PUDOTUSPELEISSÄ | V21: VUOSITTAISET SIJOITUKSET TOP - 30
G22: 0 > 1 | J22: 1 > 2 | M22: 2 > 3 | P22: 3 > k | S22: Yhteensä
B23: Vuosi | C23: Sija | D23: Seura | E23: OTT | F23: KL | G23: YHT | H23: % | I23: KL | J23: YHT | K23: % | L23: KL | M23: YHT | N23: % | O23: KL | P23: YHT | Q23: % | R23: KL | S23: YHT | T23: % | V23: Vuosi | W23: Sija | X23: Seura | Y23: 0 > 1 | Z23: 1 > 2 | AA23: 2 > 3 | AB23: 3 > k | AC23: KL
B24: 1992 | C24: 10. | D24: SMJ | V24: 1992 | W24: 10. | X24: SMJ
B25: 1993 | C25: 8. | D25: SMJ | E25: 3 | F25: 7 | G25: 12 | H25: 58.3 % | I25: 6 | J25: 11 | K25: 54.5 % | L25: 3 | M25: 5 | N25: 60.0 % | O25: 0 | P25: 0 | Q25: 0.0 % | R25: 16 | S25: 28 | T25: 57.1 % | V25: 1993 | W25: 8. | X25: SMJ | Y25: 29.
B26: 1994 | C26: 9. | D26: SMJ | V26: 1994 | W26: 9. | X26: SMJ
B27: 1995 | C27: 3. | D27: SMJ | E27: 7 | F27: 12 | G27: 24 | H27: 50.0 % | I27: 6 | J27: 13 | K27: 46.2 % | L27: 3 | M27: 5 | N27: 60.0 % | O27: 3 | P27: 3 | Q27: 100.0 % | R27: 24 | S27: 45 | T27: 53.3 % | V27: 1995 | W27: 3. | X27: SMJ | Y27: 13. | AB27: 28.
B28: 1996 | C28: 3. | D28: SMJ | E28: 5 | F28: 11 | G28: 18 | H28: 61.1 % | I28: 1 | J28: 7 | K28: 14.3 % | L28: 1 | M28: 3 | N28: 33.3 % | O28: 0 | P28: 1 | Q28: 0.0 % | R28: 13 | S28: 29 | T28: 44.8 % | V28: 1996 | W28: 3. | X28: SMJ | Y28: 21.
B29: 1997 | C29: 3. | D29: SMJ | E29: 13 | F29: 18 | G29: 41 | H29: 43.9 % | I29: 35 | J29: 55 | K29: 63.6 % | L29: 3 | M29: 5 | N29: 60.0 % | O29: 0 | P29: 1 | Q29: 0.0 % | R29: 56 | S29: 102 | T29: 54.9 % | V29: 1997 | W29: 3. | X29: SMJ | Y29: 13. | Z29: 1. | AC29: 7.
B30: 1998 | C30: 6. | D30: SMJ | E30: 3 | F30: 4 | G30: 6 | H30: 66.7 % | I30: 6 | J30: 10 | K30: 60.0 % | L30: 0 | M30: 1 | N30: 0.0 % | O30: 0 | P30: 2 | Q30: 0.0 % | R30: 10 | S30: 19 | T30: 52.6 % | V30: 1998 | W30: 6. | X30: SMJ | Z30: 28.
B31: 1999 | C31: 3. | D31: Kiri | E31: 12 | F31: 8 | G31: 12 | H31: 66.7 % | I31: 17 | J31: 26 | K31: 65.4 % | L31: 19 | M31: 29 | N31: 65.5 % | O31: 6 | P31: 17 | Q31: 35.3 % | R31: 50 | S31: 84 | T31: 59.5 % | V31: 1999 | W31: 3. | X31: Kiri | Z31: 9. | AA31: 7. | AB31: 13. | AC31: 11.
B32: 2000 | C32: 9. | D32: Kiri | V32: 2000 | W32: 9. | X32: Kiri
B33: 2001 | C33: 6. | D33: KoU | E33: 4 | F33: 4 | G33: 7 | H33: 57.1 % | I33: 7 | J33: 10 | K33: 70.0 % | L33: 4 | M33: 4 | N33: 100.0 % | O33: 0 | P33: 0 | Q33: 0.0 % | R33: 15 | S33: 21 | T33: 71.4 % | V33: 2001 | W33: 6. | X33: KoU | Z33: 25.
B34: 2002 | C34: 6. | D34: KoU | V34: 2002 | W34: 6. | X34: KoU
B35: 2003 | C35: 11. | D35: UPV | V35: 2003 | W35: 11. | X35: UPV
B36: Yhteensä | E36: =SUM(E22:E35) -> 47 | F36: =SUM(F24:F35) -> 64 | G36: =SUM(G24:G35) -> 120 | H36: =PRODUCT(F36/G36) -> 53.3 % | I36: =SUM(I24:I35) -> 78 | J36: =SUM(J24:J35) -> 132 | K36: =PRODUCT(I36/J36) -> 59.1 % | L36: =SUM(L24:L35) -> 33 | M36: =SUM(M24:M35) -> 52 | N36: =PRODUCT(L36/M36) -> 63.5 % | O36: =SUM(O24:O35) -> 9 | P36: =SUM(P24:P35) -> 24 | Q36: =PRODUCT(O36/P36) -> 37.5 % | R36: =SUM(R24:R35) -> 184 | S36: =SUM(S24:S35) -> 328 | T36: =PRODUCT(R36/S36) -> 56.1 %
B38: KÄRKILYÖNNIT
G39: 0 > 1 | J39: 1 > 2 | M39: 2 > 3 | P39: 3 > k | S39: Yhteensä
E40: OTT | F40: KL | G40: YHT | H40: % | I40: KL | J40: YHT | K40: % | L40: KL | M40: YHT | N40: % | O40: KL | P40: YHT | Q40: % | R40: KL | S40: YHT | T40: %
B41: RUNKOSARJA | E41: =PRODUCT(E19) -> 298 | F41: =PRODUCT(F19) -> 380 | G41: =PRODUCT(G19) -> 694 | H41: =PRODUCT(H19) -> 54.8 % | I41: =PRODUCT(I19) -> 532 | J41: =PRODUCT(J19) -> 821 | K41: =PRODUCT(K19) -> 64.8 % | L41: =PRODUCT(L19) -> 210 | M41: =PRODUCT(M19) -> 338 | N41: =PRODUCT(N19) -> 62.1 % | O41: =PRODUCT(O19) -> 71 | P41: =PRODUCT(P19) -> 182 | Q41: =PRODUCT(Q19) -> 39.0 % | R41: =PRODUCT(R19) -> 1193 | S41: =PRODUCT(S19) -> 2035 | T41: =PRODUCT(T19) -> 58.6 %
B42: PLAY OFF | E42: =PRODUCT(E36) -> 47 | F42: =PRODUCT(F36) -> 64 | G42: 120 | H42: 53.3 % | I42: 78 | J42: 132 | K42: 59.1 % | L42: 33 | M42: 52 | N42: 63.5 % | O42: 9 | P42: 24 | Q42: 37.5 % | R42: 184 | S42: 328 | T42: 56.1 %
